fUST/lending_fUST_20250816
["ID","MTS","AMOUNT","RATE_DAILY","PERIOD"]
[379545431,1755326390166,150.0,0.00018275,2]
[379545432,1755326390592,150.0,0.00019145,2]
[379545442,1755326478666,150.0,0.00018273,2]
[379545443,1755326479151,150.0,0.00019143,2]
[379545454,1755326556599,150.0,0.00018273,2]
[379545455,1755326556927,150.0,0.00019144,2]
[379545464,1755326633308,10.51661531,0.00018277,2]
[379545465,1755326633334,139.48338469,0.00018277,2]
[379545466,1755326633808,150.0,0.00019147,2]
[379545473,1755326709561,2037.54219215,0.00019881,2]
[379545474,1755326711665,150.0,0.00018274,2]
[379545475,1755326712111,150.0,0.00019145,2]
[379545493,1755326746026,-893.18551249,0.000199,2]
[379545504,1755326776176,863.41266218,0.000199,2]
[379545506,1755326790387,150.0,0.00018558,2]
[379545507,1755326790841,150.0,0.00019442,2]
[379545513,1755326831587,-500.0,0.000201,2]
[379545514,1755326831609,-304.271897,0.00020187,2]
[379545515,1755326831633,-150.0,0.00020325,2]
[379545516,1755326831656,-122.77178218,0.00020408,2]
[379545518,1755326841573,286.57626733,0.000189,2]
[379545519,1755326845123,-369.57304989,0.00020408,2]
[379545520,1755326849115,-371.06782989,0.00020408,2]
[379545521,1755326849137,-550.10723773,0.00020428,2]
[379545522,1755326850082,-495.99484727,0.00020428,2]
[379545523,1755326850102,-130.07151434,0.00020557,2]
[379545525,1755326865728,150.0,0.00018264,2]
[379545526,1755326866196,150.0,0.00019133,2]
[379545535,1755326937790,150.0,0.0001827,2]
[379545536,1755326938218,150.0,0.0001914,2]
[379545537,1755326941180,1236321.99319508,0.00028,120]
[379545540,1755326955352,805.8518181,0.000199,2]
[379545548,1755327012224,150.0,0.00018273,2]
[379545549,1755327012686,150.0,0.00019143,2]
[379545580,1755327032093,-150.0,0.00020003,2]
[379545582,1755327032103,-805.85181782,0.00020408,2]
[379545584,1755327032113,-85.13969906,0.00020557,2]
[379545586,1755327032122,-690.35518345,0.00020562,2]
[379545589,1755327032140,-509.64481655,0.00020562,2]
[379545591,1755327032150,-300.0,0.00020563,2]
[379545593,1755327032159,-300.0,0.00020563,2]
[379545595,1755327032168,-300.0,0.00020563,2]
[379545597,1755327032178,-300.0,0.00020563,2]
[379545599,1755327032187,-300.0,0.00020563,2]
[379545601,1755327032197,-4007.54160104,0.00020564,2]
[379545603,1755327032209,-257.47595745,0.00020564,2]
[379545982,1755327038420,-5734.98244151,0.00020564,2]
[379545983,1755327038430,-150.0,0.00020873,2]
[379545984,1755327038440,-805.85181782,0.00020916,2]
[379545985,1755327038449,-168.0,0.00021262,2]
[379545986,1755327038459,-1200.0,0.00021422,2]
[379545987,1755327038468,-300.0,0.00021422,2]
[379545988,1755327038478,-9901.95935489,0.00021423,2]
[379545989,1755327038487,-805.85181782,0.00021424,2]
[379545990,1755327038496,-168.0,0.00021509,2]
[379545991,1755327038507,-608.16114754,0.00021592,2]
[379545992,1755327038518,-235.41962627,0.00021592,2]
[379545993,1755327038528,-150.0,0.00021742,2]
[379545994,1755327038537,-78.26634889,0.00021817,2]
[379545995,1755327038548,-601.73625706,0.00021817,2]
[379545996,1755327038573,-404.39176818,0.00021817,2]
[379545998,1755327040200,-5670.51388754,0.00021817,2]
[379545999,1755327040211,-160.0412501,0.00021817,2]
[379546000,1755327040221,-200.0,0.00021849,20]
[379546001,1755327040231,-200.0,0.00021849,20]
[379546002,1755327040241,-200.0,0.00021849,20]
[379546003,1755327040250,-200.0,0.00021849,20]
[379546004,1755327040261,-200.0,0.00021849,20]
[379546005,1755327040271,-200.0,0.00021849,20]
[379546006,1755327040281,-200.0,0.00021849,20]
[379546007,1755327040291,-200.0,0.00021849,20]
[379546008,1755327040300,-168.0,0.0002189,2]
[379546009,1755327040310,-168.0,0.00021905,2]
[379546010,1755327040319,-500.0,0.00021916,2]
[379546011,1755327040329,-166.73276325,0.00021916,2]
[379546012,1755327040339,-366.72116026,0.00021916,2]
[379546013,1755327040348,-500.0,0.00021916,2]
[379546014,1755327040357,-224.84474482,0.00021916,2]
[379546202,1755327044710,-275.15525518,0.00021916,2]
[379546204,1755327044720,-500.0,0.00021916,2]
[379546206,1755327044730,-434.74447237,0.00021916,2]
[379546208,1755327044739,-264.86655362,0.00021916,2]
[379546210,1755327044749,-151.82655371,0.00021916,2]
[379546212,1755327044759,-500.0,0.00021917,2]
[379546214,1755327044768,-480.0,0.00021917,3]
[379546216,1755327044778,-460.0,0.00021917,3]
[379546218,1755327044788,-460.0,0.00021917,3]
[379546220,1755327044797,-407.34565551,0.00021917,3]
[379546222,1755327044806,-480.0,0.00021917,3]
[379546224,1755327044815,-480.0,0.00021917,3]
[379546226,1755327044825,-480.0,0.00021917,3]
[379546228,1755327044834,-480.0,0.00021917,3]
[379546230,1755327044843,-480.0,0.00021917,3]
[379546232,1755327044854,-480.0,0.00021917,3]
[379546234,1755327044863,-224.33882342,0.00021917,3]
[379546236,1755327044872,-480.0,0.00021917,3]
[379546238,1755327044881,-480.0,0.00021917,3]
[379546240,1755327044896,-480.0,0.00021917,3]
[379546242,1755327044905,-480.0,0.00021917,3]
[379546244,1755327044914,-480.0,0.00021917,3]
[379546246,1755327044924,-480.0,0.00021917,3]
[379546248,1755327044935,-480.0,0.00021917,3]
[379546250,1755327044944,-480.0,0.00021917,3]
[379546252,1755327044954,-480.0,0.00021917,3]
[379546254,1755327044964,-480.0,0.00021917,3]
[379546256,1755327044974,-480.0,0.00021917,3]
[379546258,1755327044983,-480.0,0.00021917,3]
[379546260,1755327044992,-480.0,0.00021917,3]
[379546262,1755327045002,-400.0,0.00021917,3]
[379546264,1755327045011,-480.0,0.00021917,3]
[379546265,1755327045021,-460.0,0.00021917,3]
[379546267,1755327045031,-480.0,0.00021917,3]
[379546269,1755327045040,-229.30299971,0.00021917,3]
[379546278,1755327045122,-250.69700029,0.00021917,3]
[379546280,1755327045133,-480.0,0.00021917,3]
[379546282,1755327045142,-480.0,0.00021917,3]
[379546284,1755327045152,-460.0,0.00021917,3]
[379546286,1755327045161,-460.0,0.00021917,3]
[379546288,1755327045170,-480.0,0.00021917,3]
[379546290,1755327045179,-460.0,0.00021917,3]
[379546292,1755327045188,-460.0,0.00021917,3]
[379546293,1755327045198,-500.0,0.00021917,3]
[379546295,1755327045207,-10.54254462,0.00021917,3]
[379546298,1755327045219,-489.45745538,0.00021917,3]
[379546300,1755327045228,-480.0,0.00021917,3]
[379546302,1755327045237,-460.0,0.00021917,3]
[379546304,1755327045247,-480.0,0.00021917,3]
[379546305,1755327045257,-460.0,0.00021917,3]
[379546307,1755327045267,-480.0,0.00021917,3]
[379546309,1755327045276,-480.0,0.00021917,3]
[379546311,1755327045285,-480.0,0.00021917,3]
[379546313,1755327045294,-480.0,0.00021917,3]
[379546315,1755327045303,-460.0,0.00021917,3]
[379546317,1755327045312,-460.0,0.00021917,3]
[379546319,1755327045322,-517.1274726,0.00021917,3]
[379546321,1755327045331,-480.0,0.00021917,3]
[379546323,1755327045341,-480.0,0.00021917,3]
[379546325,1755327045351,-460.0,0.00021917,3]
[379546327,1755327045360,-460.0,0.00021917,3]
[379546329,1755327045370,-460.0,0.00021917,3]
[379546331,1755327045380,-822.53,0.00021917,3]
[379546333,1755327045389,-460.0,0.00021917,3]
[379546335,1755327045399,-480.0,0.00021917,3]
[379546337,1755327045408,-541.9,0.00021917,3]
[379546338,1755327045418,-472.5920764,0.00021917,3]
[379546339,1755327045427,-400.0,0.00021917,3]
[379546340,1755327045436,-480.0,0.00021917,3]
[379546341,1755327045445,-460.0,0.00021917,3]
[379546342,1755327045454,-416.00757877,0.00021917,3]
[379546343,1755327045463,-1051.94,0.00021917,3]
[379546344,1755327045472,-283.57906231,0.00021917,3]
[379546345,1755327045481,-480.0,0.00021917,3]
[379546346,1755327045490,-480.0,0.00021917,3]
[379546347,1755327045499,-480.0,0.00021917,3]
[379546348,1755327045507,-460.0,0.00021917,3]
[379546349,1755327045517,-480.0,0.00021917,3]
[379546350,1755327045526,-246.11498051,0.00021917,3]
[379546351,1755327045535,-460.0,0.00021917,3]
[379546352,1755327045544,-480.0,0.00021917,3]
[379546353,1755327045552,-480.0,0.00021917,3]
[379546355,1755327045561,-480.0,0.00021917,3]
[379546356,1755327045570,-480.0,0.00021917,3]
[379546357,1755327045579,-401.11402265,0.00021917,3]
[379546358,1755327045589,-480.0,0.00021917,3]
[379546359,1755327045598,-400.0,0.00021917,3]
[379546360,1755327045608,-480.0,0.00021917,3]
[379546361,1755327045617,-460.0,0.00021917,3]
[379546362,1755327045627,-480.0,0.00021917,3]
[379546363,1755327045636,-480.0,0.00021917,3]
[379546364,1755327045645,-480.0,0.00021917,3]
[379546365,1755327045654,-480.0,0.00021917,3]
[379546366,1755327045663,-480.0,0.00021917,3]
[379546367,1755327045672,-480.0,0.00021917,3]
[379546369,1755327045681,-480.0,0.00021917,3]
[379546370,1755327045690,-480.0,0.00021917,3]
[379546371,1755327045699,-480.0,0.00021917,3]
[379546373,1755327045710,-460.0,0.00021917,3]
[379546375,1755327045719,-480.0,0.00021917,3]
[379546377,1755327045728,-400.97765085,0.00021917,3]
[379546379,1755327045737,-251.65816601,0.00021917,3]
[379546903,1755327083509,150.0,0.00018277,2]
[379546906,1755327131805,698.40490899,0.000199,2]
[379546932,1755327304610,675.12474527,0.000199,2]
[379546940,1755327371223,380.229082,0.00013699,2]
[379546948,1755327479285,331.6,0.000199,2]
[379546951,1755327485781,652.62058722,0.000199,2]
[379546958,1755327565098,151.0,0.000199,2]
[379547037,1755327626652,151.0,0.00023,30]
[379547087,1755327656674,195.41,0.000199,2]
[379547088,1755327656748,630.86656753,0.000199,2]
[379547089,1755327660338,150.0,0.00018611,2]
[379547090,1755327660846,150.0,0.00019497,2]
[379547198,1755327675477,283.72428956,0.00019796,2]
[379547199,1755327729561,150.0,0.00018293,2]
[379547200,1755327730040,150.0,0.00019164,2]
[379547217,1755327784138,308.80804684,0.000199,2]
[379547218,1755327784163,16.22581478,0.000199,2]
[379547223,1755327830718,609.83768182,0.000199,2]
[379547231,1755327904802,899.90116058,0.000199,2]
[379547241,1755327953144,-325.03386162,0.00019961,2]
[379547254,1755328003070,589.50975917,0.000199,2]
[379547257,1755328010941,150.0,0.00018615,2]
[379547258,1755328011263,150.0,0.00019502,2]
[379547262,1755328034074,-198.01718038,0.00019961,2]
[379547263,1755328034095,-150.0,0.0002,2]
[379547264,1755328034117,-235.87759789,0.00020187,2]
[379547265,1755328035849,1514.62152486,0.00028,120]
[379547266,1755328048077,-144.35148411,0.00020187,2]
[379547267,1755328048097,-280.05666975,0.00020358,2]
[379547268,1755328048118,-251.70148214,0.00020408,2]
[379547269,1755328048143,-266.48175273,0.00020408,2]
[379547283,1755328175874,560.97670887,0.000199,2]
[379547294,1755328232523,-900.1571553,0.00019931,2]
[379547295,1755328232535,-682.5113379,0.00019931,2]
[379547296,1755328232545,-560.97670868,0.00020408,2]
[379547297,1755328232555,-500.0,0.00020458,2]
[379547298,1755328232566,-500.0,0.00020458,2]
[379547299,1755328232576,-532.22079616,0.00020458,2]
[379547300,1755328232586,-154.0,0.00020469,2]
[379547301,1755328232596,-9906.44276381,0.0002047,2]
[379547345,1755328238567,-1106.52550174,0.0002047,2]
[379547346,1755328238587,-846.09416604,0.0002047,2]
[379547347,1755328238599,-9270.18226891,0.0002047,2]
[379547348,1755328238608,-168.0,0.00020803,2]
[379547349,1755328238618,-168.0,0.0002082,2]
[379547350,1755328238627,-200.0,0.00020879,20]
[379547351,1755328238637,-200.0,0.00020879,20]
[379547352,1755328238646,-200.0,0.00020879,20]
[379547353,1755328238655,-200.0,0.00020879,20]
[379547354,1755328238664,-200.0,0.00020879,20]
[379547355,1755328238673,-200.0,0.00020879,20]
[379547356,1755328238683,-200.0,0.00020879,20]
[379547357,1755328238692,-200.0,0.00020879,20]
[379547358,1755328238701,-560.97670868,0.00020916,2]
[379547359,1755328238710,-168.0,0.00020939,2]
[379547360,1755328238719,-168.0,0.00020997,2]
[379547361,1755328238729,-168.0,0.00021062,2]
[379547362,1755328238738,-168.0,0.00021105,2]
[379547363,1755328238748,-168.0,0.0002112,2]
[379547364,1755328238757,-168.0,0.00021284,2]
[379547365,1755328238766,-560.97670868,0.00021424,2]
[379547366,1755328238775,-168.0,0.00021516,2]
[379547367,1755328238785,-232.11368524,0.00021532,2]
[379547368,1755328238794,-160.0,0.00021532,2]
[379547369,1755328238803,-160.0,0.00021532,2]
[379547370,1755328238813,-160.0,0.00021532,2]
[379547371,1755328238822,-417.15472785,0.00021532,2]
[379547372,1755328238831,-160.0,0.00021532,2]
[379547373,1755328238840,-528.38334358,0.00021532,2]
[379547374,1755328238849,-160.0,0.00021532,2]
[379547375,1755328238858,-215.68093138,0.00021532,2]
[379547376,1755328238867,-160.0,0.00021532,2]
[379547377,1755328238877,-160.0,0.00021532,2]
[379547378,1755328238886,-160.0,0.00021532,2]
[379547379,1755328238895,-500.0,0.00021581,2]
[379547380,1755328238904,-1342.28239322,0.00021581,2]
[379547381,1755328238914,-151.0,0.00021581,2]
[379547382,1755328238923,-151.0,0.00021581,2]
[379547383,1755328238932,-151.0,0.00021581,2]
[379547384,1755328238942,-203.82073721,0.00021581,2]
[379547385,1755328238951,-151.0,0.00021581,2]
[379547386,1755328238961,-151.0,0.00021581,2]
[379547387,1755328238972,-151.0,0.00021581,2]
[379547388,1755328238982,-151.0,0.00021581,2]
[379547389,1755328238992,-151.0,0.00021581,2]
[379547390,1755328239001,-151.0,0.00021581,2]
[379547391,1755328239011,-151.0,0.00021581,2]
[379547393,1755328239020,-151.0,0.00021581,2]
[379547395,1755328239029,-151.0,0.00021581,2]
[379547397,1755328239039,-243.89168695,0.00021581,2]
[379547399,1755328239048,-151.0,0.00021581,2]
[379547401,1755328239057,-151.0,0.00021581,2]
[379547403,1755328239066,-144.5459873,0.00021581,2]
[379547406,1755328239083,-6.4540127,0.00021581,2]
[379547408,1755328239093,-151.0,0.00021581,2]
[379547410,1755328239102,-151.0,0.00021581,2]
[379547412,1755328239111,-151.0,0.00021581,2]
[379547414,1755328239121,-151.0,0.00021581,2]
[379547416,1755328239131,-151.0,0.00021581,2]
[379547418,1755328239140,-151.0,0.00021581,2]
[379547420,1755328239149,-300.0,0.00021581,2]
[379547422,1755328239159,-151.0,0.00021581,2]
[379547424,1755328239168,-300.0,0.00021581,2]
[379547426,1755328239177,-151.0,0.00021581,2]
[379547428,1755328239186,-300.0,0.00021581,2]
[379547430,1755328239196,-284.47548457,0.00021581,2]
[379547432,1755328239205,-300.0,0.00021581,2]
[379547434,1755328239214,-300.0,0.00021581,2]
[379547436,1755328239223,-300.0,0.00021581,2]
[379547437,1755328239232,-151.0,0.00021581,2]
[379547439,1755328239241,-151.0,0.00021581,2]
[379547440,1755328239253,-151.0,0.00021581,2]
[379547441,1755328239262,-151.0,0.00021581,2]
[379547442,1755328239271,-151.0,0.00021581,2]
[379547443,1755328239280,-151.0,0.00021581,2]
[379547444,1755328239289,-151.0,0.00021581,2]
[379547445,1755328239299,-151.0,0.00021581,2]
[379547446,1755328239308,-151.0,0.00021581,2]
[379547447,1755328239317,-151.0,0.00021581,2]
[379547448,1755328239326,-151.0,0.00021581,2]
[379547449,1755328239336,-151.0,0.00021581,2]
[379547450,1755328239345,-151.0,0.00021581,2]
[379547451,1755328239355,-229.54265378,0.00021581,2]
[379547452,1755328239365,-168.0,0.00021609,2]
[379547453,1755328239374,-156.98781249,0.00021816,2]
[379547454,1755328239384,-152.40134819,0.00021816,2]
[379547455,1755328239393,-500.0,0.00021816,2]
[379547456,1755328239403,-20405.9271296,0.00021817,2]
[379547457,1755328239412,-1000.0,0.00021817,2]
[379547458,1755328239422,-160.0412501,0.00021817,2]
[379547459,1755328239432,-150.0,0.00021916,2]
[379547460,1755328239441,-460.0,0.00021917,3]
[379547461,1755328239450,-460.0,0.00021917,3]
[379547462,1755328239460,-400.0,0.00021917,3]
[379547463,1755328239469,-480.0,0.00021917,3]
[379547464,1755328239479,-460.0,0.00021917,3]
[379547465,1755328239489,-460.0,0.00021917,3]
[379547466,1755328239499,-460.0,0.00021917,3]
[379547467,1755328239507,-460.0,0.00021917,3]
[379547468,1755328239518,-480.0,0.00021917,3]
[379547469,1755328239527,-480.0,0.00021917,3]
[379547470,1755328239536,-460.0,0.00021917,3]
[379547471,1755328239546,-460.0,0.00021917,3]
[379547472,1755328239556,-460.20282077,0.00021917,3]
[379547473,1755328239565,-465.34076484,0.00021917,3]
[379547474,1755328239575,-480.0,0.00021917,3]
[379547476,1755328239585,-462.23154183,0.00021917,3]
[379547478,1755328239595,-460.0,0.00021917,3]
[379547480,1755328239605,-505.11,0.00021917,3]
[379547482,1755328239615,-480.0,0.00021917,3]
[379547484,1755328239624,-480.0,0.00021917,3]
[379547486,1755328239634,-480.0,0.00021917,3]
[379547488,1755328239643,-480.0,0.00021917,3]
[379547490,1755328239652,-460.0,0.00021917,3]
[379547492,1755328239661,-480.0,0.00021917,3]
[379547494,1755328239670,-480.0,0.00021917,3]
[379547496,1755328239680,-462.45428824,0.00021917,3]
[379547498,1755328239689,-480.0,0.00021917,3]
[379547500,1755328239698,-480.0,0.00021917,3]
[379547502,1755328239707,-480.0,0.00021917,3]
[379547504,1755328239716,-480.0,0.00021917,3]
[379547506,1755328239726,-460.0,0.00021917,3]
[379547508,1755328239735,-480.0,0.00021917,3]
[379547510,1755328239744,-480.0,0.00021917,3]
[379547512,1755328239753,-480.0,0.00021917,3]
[379547514,1755328239763,-512.87567466,0.00021917,3]
[379547516,1755328239772,-480.0,0.00021917,3]
[379547518,1755328239781,-593.87100228,0.00021917,3]
[379547520,1755328239791,-480.0,0.00021917,3]
[379547522,1755328239800,-480.0,0.00021917,3]
[379547524,1755328239810,-460.0,0.00021917,3]
[379547526,1755328239820,-480.0,0.00021917,3]
[379547528,1755328239830,-460.0,0.00021917,3]
[379547530,1755328239839,-460.0,0.00021917,3]
[379547533,1755328239848,-519.80261382,0.00021917,3]
[379547535,1755328239856,-460.0,0.00021917,3]
[379547537,1755328239866,-460.61253332,0.00021917,3]
[379547538,1755328239875,-480.0,0.00021917,3]
[379547541,1755328239885,-480.0,0.00021917,3]
[379547543,1755328239895,-583.62540956,0.00021917,3]
[379547544,1755328239904,-626.89903676,0.00021917,3]
[379547546,1755328239914,-480.0,0.00021917,3]
[379547549,1755328239924,-460.0,0.00021917,3]
[379547551,1755328239934,-336.68901843,0.00021917,3]
[379547552,1755328239944,-480.0,0.00021917,3]
[379547555,1755328239953,-460.0,0.00021917,3]
[379547556,1755328239964,-480.0,0.00021917,3]
[379547558,1755328239973,-480.0,0.00021917,3]
[379547560,1755328239982,-460.0,0.00021917,3]
[379547562,1755328239991,-480.0,0.00021917,3]
[379547564,1755328240001,-460.11345523,0.00021917,3]
[379547566,1755328240010,-460.87303854,0.00021917,3]
[379547568,1755328240020,-460.0,0.00021917,3]
[379547570,1755328240029,-480.0,0.00021917,3]
[379547572,1755328240039,-480.0,0.00021917,3]
[379547574,1755328240048,-480.0,0.00021917,3]
[379547576,1755328240058,-460.0,0.00021917,3]
[379547578,1755328240067,-460.0,0.00021917,3]
[379547580,1755328240077,-460.0,0.00021917,3]
[379547582,1755328240087,-480.0,0.00021917,3]
[379547584,1755328240097,-480.0,0.00021917,3]
[379547586,1755328240107,-460.0,0.00021917,3]
[379547588,1755328240116,-480.0,0.00021917,3]
[379547590,1755328240125,-460.0,0.00021917,3]
[379547592,1755328240134,-460.0,0.00021917,3]
[379547593,1755328240143,-480.0,0.00021917,3]
[379547594,1755328240153,-480.0,0.00021917,3]
[379547595,1755328240162,-480.0,0.00021917,3]
[379547596,1755328240171,-480.0,0.00021917,3]
[379547597,1755328240181,-480.0,0.00021917,3]
[379547598,1755328240190,-480.0,0.00021917,3]
[379547599,1755328240200,-460.0,0.00021917,3]
[379547600,1755328240209,-480.0,0.00021917,3]
[379547601,1755328240219,-460.11570537,0.00021917,3]
[379547602,1755328240228,-480.0,0.00021917,3]
[379547603,1755328240238,-480.0,0.00021917,3]
[379547604,1755328240248,-480.0,0.00021917,3]
[379547605,1755328240261,-480.0,0.00021917,3]
[379547606,1755328240270,-480.0,0.00021917,3]
[379547607,1755328240281,-480.0,0.00021917,3]
[379547608,1755328240290,-480.0,0.00021917,3]
[379547609,1755328240304,-480.0,0.00021917,3]
[379547610,1755328240314,-480.0,0.00021917,3]
[379547611,1755328240324,-470.55648676,0.00021917,3]
[379547612,1755328240335,-480.0,0.00021917,3]
[379547613,1755328240345,-460.0,0.00021917,3]
[379547614,1755328240354,-460.79742993,0.00021917,3]
[379547616,1755328240363,-460.0,0.00021917,3]
[379547618,1755328240372,-460.0,0.00021917,3]
[379547619,1755328240382,-480.0,0.00021917,3]
[379547620,1755328240391,-480.0,0.00021917,3]
[379547621,1755328240401,-460.23599353,0.00021917,3]
[379547622,1755328240410,-500.0,0.00021917,3]
[379547623,1755328240419,-460.0,0.00021917,3]
[379547624,1755328240429,-500.0,0.00021917,3]
[379547625,1755328240438,-500.0,0.00021917,3]
[379547626,1755328240447,-480.0,0.00021917,3]
[379547627,1755328240456,-500.0,0.00021917,3]
[379547628,1755328240465,-500.0,0.00021917,3]
[379547629,1755328240475,-480.0,0.00021917,3]
[379547630,1755328240484,-500.0,0.00021917,3]
[379547631,1755328240494,-500.0,0.00021917,3]
[379547632,1755328240503,-460.0,0.00021917,3]
[379547633,1755328240513,-500.0,0.00021917,3]
[379547634,1755328240521,-500.0,0.00021917,3]
[379547635,1755328240530,-323.23832772,0.00021917,3]
[379547636,1755328240540,-480.0,0.00021917,3]
[379547637,1755328240549,-480.0,0.00021917,2]
[379547638,1755328240558,-480.0,0.00021917,3]
[379547639,1755328240567,-954.9,0.00021917,3]
[379547640,1755328240577,-480.0,0.00021917,3]
[379547641,1755328240586,-391.83370123,0.00021917,3]
[379547642,1755328240595,-480.0,0.00021917,3]
[379547643,1755328240605,-480.0,0.00021917,3]
[379547645,1755328240614,-480.0,0.00021917,3]
[379547646,1755328240623,-460.0,0.00021917,3]
[379547647,1755328240632,-480.0,0.00021917,3]
[379547649,1755328240641,-480.0,0.00021917,3]
[379547651,1755328240650,-480.0,0.00021917,3]
[379547653,1755328240659,-480.0,0.00021917,3]
[379547655,1755328240669,-460.0,0.00021917,3]
[379547657,1755328240678,-480.0,0.00021917,3]
[379547659,1755328240687,-480.0,0.00021917,3]
[379547661,1755328240696,-460.0,0.00021917,3]
[379547662,1755328240705,-480.0,0.00021917,3]
[379547664,1755328240715,-480.0,0.00021917,3]
[379547666,1755328240724,-480.0,0.00021917,3]
[379547668,1755328240733,-480.0,0.00021917,3]
[379547670,1755328240742,-480.0,0.00021917,3]
[379547672,1755328240751,-480.0,0.00021917,3]
[379547674,1755328240760,-480.0,0.00021917,3]
[379547676,1755328240769,-480.0,0.00021917,3]
[379547678,1755328240779,-480.0,0.00021917,3]
[379547680,1755328240788,-460.0,0.00021917,3]
[379547682,1755328240797,-480.0,0.00021917,3]
[379547684,1755328240806,-481.98,0.00021917,3]
[379547686,1755328240816,-480.0,0.00021917,3]
[379547688,1755328240825,-1276.46,0.00021917,3]
[379547690,1755328240835,-480.0,0.00021917,3]
[379547692,1755328240844,-460.0,0.00021917,3]
[379547694,1755328240854,-480.0,0.00021917,3]
[379547696,1755328240863,-480.0,0.00021917,3]
[379547698,1755328240872,-480.0,0.00021917,3]
[379547700,1755328240881,-480.0,0.00021917,3]
[379547702,1755328240891,-460.0,0.00021917,3]
[379547704,1755328240900,-480.0,0.00021917,3]
[379547706,1755328240909,-480.0,0.00021917,3]
[379547708,1755328240918,-480.0,0.00021917,3]
[379547710,1755328240928,-460.0,0.00021917,3]
[379547712,1755328240937,-480.0,0.00021917,3]
[379547714,1755328240947,-460.0,0.00021917,3]
[379547716,1755328240956,-480.0,0.00021917,3]
[379547718,1755328240966,-480.0,0.00021917,3]
[379547720,1755328240975,-480.0,0.00021917,3]
[379547722,1755328240984,-480.0,0.00021917,3]
[379547724,1755328240993,-480.0,0.00021917,3]
[379547726,1755328241002,-480.0,0.00021917,3]
[379547728,1755328241011,-460.50417461,0.00021917,3]
[379547730,1755328241021,-480.0,0.00021917,3]
[379547732,1755328241030,-480.0,0.00021917,3]
[379547734,1755328241040,-480.0,0.00021917,3]
[379547736,1755328241049,-460.0,0.00021917,3]
[379547738,1755328241059,-480.0,0.00021917,3]
[379547740,1755328241068,-460.0,0.00021917,3]
[379547742,1755328241078,-480.0,0.00021917,3]
[379547744,1755328241088,-480.0,0.00021917,3]
[379547746,1755328241097,-480.0,0.00021917,3]
[379547748,1755328241107,-480.0,0.00021917,3]
[379547750,1755328241116,-480.0,0.00021917,3]
[379547752,1755328241126,-480.0,0.00021917,3]
[379547753,1755328241136,-480.0,0.00021917,3]
[379547755,1755328241146,-480.0,0.00021917,3]
[379547757,1755328241155,-460.0,0.00021917,3]
[379547759,1755328241164,-406.2899372,0.00021917,3]
[379547761,1755328241176,-480.0,0.00021917,3]
[379547764,1755328241186,-480.0,0.00021917,3]
[379547765,1755328241195,-460.0,0.00021917,3]
[379547768,1755328241205,-480.0,0.00021917,3]
[379547769,1755328241214,-480.0,0.00021917,3]
[379547771,1755328241223,-480.0,0.00021917,3]